[Event "5th Baskent University Open 2022"]
[Site "Ankara"]
[Date "2022.07.03"]
[Round "3.7"]
[White "Aliyev, Elnur"]
[Black "Akbas, Umut Ata"]
[Result "1-0"]
[ECO "A16"]
[WhiteElo "2142"]
[BlackElo "2298"]
[Annotator "TA"]
[PlyCount "151"]
[EventDate "2022.07.02"]
[EventType "swiss"]
[EventCountry "TUR"]
[SourceTitle "playchess.com"]
[Source "ChessBase"]
[SourceQuality "1"]
[TimeControl "5400+30"]

{[%evp 9,151,0,36,40,39,34,40,38,39,34,58,27,31,32,54,46,46,25,56,48,89,70,127,105,189,185,211,208,200,187,251,244,245,134,142,126,126,130,133,123,191,171,191,142,135,10,11,25,21,0,12,0,25,0,0,0,-16,-18,60,51,84,49,85,-12,-12,-12,8,0,0,0,0,0,0,0,0,0,0,0,0,0,8,19,29969,29971,29968,29972,29969,29969,29969,29968,29965,29956,29969,29969,29971,29955,29970,29970,29973,29974,29973,29969,29970,29971,29969,29970,29970,29971,29980,29978,29977,29974,29973,29975,29975,29976,29976,29977,29978,29970,29969,29972,29972,29973,29973,29971,29971,29972,29972,29973,29974,29975,29975,29976,29975,29976,29977,29978,29978,29979,29980,29981,29983,29984]} 1. c4 {[%emt 0:02:00]} Nf6 {[%emt 0:01:00]} 2. Nc3 {[%emt 0:00:30]} d5 {[%emt 0:00:30]} 3. cxd5 {[%emt 0:00:30]} Nxd5 {[%emt 0:00:00]} 4. Nf3 {[%emt 0:00:00]} g6 {[%emt 0:00:00]} 5. Qc2 {[%emt 0:00:00]} Bg7 {[%emt 0:08:30]} 6. e4 $1 {[%emt 0:02:30] A16: English Opening: 1...Nf6 with ...d5.} ({Reject} 6. Nxd5 Qxd5 7. e3 Bf5 $15) 6... Nxc3 {[%emt 0:01:30]} 7. dxc3 {[%emt 0:00:00]} O-O {[%emt 0:06:30]} 8. Bc4 {[%emt 0:05:00] White is slightly better.} Nd7 {[%emt 0:12:30]} 9. Be3 {[%emt 0:08:30]} c6 {[%emt 0:01:30]} 10. a4 {[%emt 0:04:30]} Qc7 {[%emt 0:02:30]} 11. O-O {[%emt 0:09:30] [#]} a5 $146 {[%emt 0:06:30]} ({Predecessor:} 11... Nf6 12. h3 b6 13. a5 Bd7 14. b4 e6 15. Bd4 c5 16. Be5 Qc6 17. b5 Qxe4 {1-0 (34) Makarian,R (2383)-Gusarov,A (2231) Voronezh 2019}) 12. h3 {[%emt 0:04:30]} b6 {[%emt 0:03:30]} 13. Nd4 {[%emt 0:03:30]} Bb7 {[%emt 0:07:30]} 14. Rad1 {[%emt 0:03:30] aiming for Ne6.} Nc5 {[%emt 0:02:30] Against Ne6} 15. f4 {[%emt 0:08:30]} Kh8 {[%emt 0:21:30]} (15... Rad8 $14) 16. e5 {[%emt 0:04:30]} Rab8 {[%emt 0:05:43]} (16... e6 $16) 17. Nf3 {[%emt 0:01:30]} Qc8 {[%emt 0:08:18]} 18. Bxc5 {[%emt 0:08:30]} bxc5 {[%emt 0:00:30]} 19. Ng5 {[%emt 0:00:00]} e6 {[%emt 0:00:00]} (19... Ba6 $142 20. Nxf7+ Rxf7 21. Bxf7 Bxf1) 20. Ne4 $18 {[%emt 0:01:00]} Qc7 {[%emt 0:01:19]} 21. Nxc5 {[%emt 0:01:30]} (21. Rd6 $18) 21... Rfd8 $16 {[%emt 0:00:44]} 22. Qf2 {[%emt 0:04:30][%cal Oc4e6] 0x0.000bd0ea79d0dp-1022s more active pieces.} Bf8 {[%emt 0:00:26]} 23. g4 {[%emt 0:07:30]} Be7 {[%emt 0:04:04]} 24. b3 {[%emt 0:01:01]} Qb6 {[%emt 0:01:55] [#]} (24... Ra8 $16 {keeps fighting.} 25. f5 gxf5) 25. Nd7 $1 $18 {[%emt 0:03:45]} Qxf2+ {[%emt 0:00:04]} 26. Rxf2 {[%emt 0:00:24]} (26. Kxf2 $18 Rbc8 27. Ke3) 26... Bc5 $16 {[%emt 0:00:34] [#]} 27. Nxc5 {[%emt 0:01:09]} Rxd1+ $11 {[%emt 0:00:05]} 28. Rf1 {[%emt 0:02:35]} Rd2 {[%emt 0:01:30]} 29. Rf2 {[%emt 0:01:17][%mdl 1024] White has compensation.} Rd1+ {[%emt 0:00:30]} 30. Rf1 {[%emt 0:00:30][%cal Bf2f1,Bf1d1,Bd1d5][%mdl 32]} Rd2 {[%emt 0:00:00][%cal Bd1d2,Bd2c2,Bc2c3][%mdl 32]} 31. Ne4 {[%emt 0:00:34]} Rc2 {[%emt 0:00:30][%cal Oc6c5]} 32. Rd1 {[%emt 0:00:44]} c5 {[%emt 0:01:33]} 33. Nf6 {[%emt 0:00:18] Hoping for Rd7.} Bd5 {[%emt 0:01:27]} (33... Bc6 $11 34. Rd6 Ba8) 34. Nxd5 $14 {[%emt 0:01:01]} exd5 {[%emt 0:00:30]} 35. Rxd5 {[%emt 0:00:12][%mdl 4096] Endgame KRR-KRB} Rb7 {[%emt 0:00:12]} 36. g5 {[%emt 0:00:28]} ({Better is} 36. Rxc5 $16 Ra7 37. Bd5) 36... Rxc3 {[%emt 0:01:02]} 37. Kg2 {[%emt 0:00:36]} ({Avoid the trap} 37. Rxc5 $2 Rbxb3 38. Bxb3 Rxc5 39. Bxf7 Kg7 $19) 37... Rb4 {[%emt 0:01:21]} 38. h4 {[%emt 0:05:33] Black must now prevent Rd7.} ({Much weaker is} 38. Rxc5 Rbxb3 39. Bxb3 Rxc5 40. Bxf7 Kg7 $17) 38... Rcxc4 {[%emt 0:00:56]} 39. bxc4 {[%emt 0:00:30]} Rxc4 $11 {[%emt 0:00:00] KR-KR} 40. Kf3 {[%emt 0:00:11] Threatens to win with Rd7.} Rxa4 {[%emt 0:00:09]} 41. Rxc5 {[%emt 0:01:07]} Ra3+ {[%emt 0:00:29]} 42. Ke4 {[%emt 0:01:13]} Ra4+ {[%emt 0:00:43]} 43. Ke3 {[%emt 0:00:30]} Ra3+ {[%emt 0:00:00]} 44. Kd4 {[%emt 0:00:00][%cal Oh4h5]} Rh3 {[%emt 0:00:42]} 45. Rc7 {[%emt 0:02:22]} Rxh4 {[%emt 0:01:21][%mdl 8192] Black cannot hold the game after this.} (45... Kg8 $11) 46. Rxf7 {[%emt 0:00:13] White mates.} Rh1 {[%emt 0:00:21]} 47. e6 {[%emt 0:00:48]} Kg8 {[%emt 0:00:05]} 48. Ke5 {[%emt 0:00:43]} Rb1 {[%emt 0:00:22]} 49. Rc7 {[%emt 0:02:27]} Rb8 {[%emt 0:00:30]} 50. Kd6 {[%emt 0:00:39]} a4 {[%emt 0:00:29]} 51. Ra7 {[%emt 0:01:06]} Rd8+ {[%emt 0:00:44]} 52. Kc7 {[%emt 0:00:23]} Re8 {[%emt 0:00:43]} 53. Kd7 {[%emt 0:00:30]} Kf8 {[%emt 0:00:00]} 54. Rxa4 {[%emt 0:00:19]} Rb8 {[%emt 0:00:00]} 55. Rc4 {[%emt 0:00:27]} Rb7+ {[%emt 0:00:19]} 56. Kd6 {[%emt 0:00:00]} Rb6+ {[%emt 0:00:03]} 57. Rc6 {[%emt 0:00:34]} Rb8 {[%emt 0:00:02]} 58. Rc7 {[%emt 0:00:15]} Ke8 {[%emt 0:00:21]} 59. Rxh7 {[%emt 0:01:00][%cal Rh7h8]} Rb6+ {[%emt 0:00:30]} 60. Ke5 {[%emt 0:02:06]} Rb5+ {[%emt 0:00:00]} 61. Kf6 {[%emt 0:00:32][%cal Rh7h8]} Rf5+ {[%emt 0:00:06]} 62. Kxg6 {[%emt 0:00:30]} Rxf4 {[%emt 0:00:00]} 63. Rh1 {[%emt 0:00:28]} Ke7 {[%emt 0:00:00]} 64. Re1 {[%emt 0:00:00]} Rh4 {[%emt 0:00:44]} 65. Kg7 {[%emt 0:00:07]} Rh2 {[%emt 0:00:57]} 66. g6 {[%emt 0:00:08][%cal Bg5g6,Bg6g7][%mdl 32]} Rg2 {[%emt 0:00:25]} 67. Kh7 {[%emt 0:00:12]} Rh2+ {[%emt 0:00:53]} 68. Kg8 {[%emt 0:00:30]} Rh3 {[%emt 0:00:00]} 69. g7 {[%emt 0:00:12]} Rh2 {[%emt 0:00:00]} 70. Rf1 {[%emt 0:00:29]} Rh3 {[%emt 0:00:24]} 71. Rf7+ {[%emt 0:00:30]} Ke8 {[%emt 0:00:00]} 72. e7 {[%emt 0:00:00]} Rh1 {[%emt 0:01:12]} 73. Rf8+ {[%emt 0:00:00]} Kxe7 {[%emt 0:00:30]} 74. Rf4 {[%emt 0:00:00]} Ra1 {[%emt 0:03:16]} 75. Rh4 {[%emt 0:00:26]} Ra7 {[%emt 0:01:35]} 76. Kh8 {[%emt 0:00:18] Weighted Error Value: White=0.15 (very precise) /Black=0.22 (precise)} 1-0

[Event "5th Baskent University Open 2022"]
[Site "Ankara"]
[Date "2022.07.03"]
[Round "3.8"]
[White "Bicer, Atakan Mert"]
[Black "Makaraci, Tunahan"]
[Result "0-1"]
[ECO "B37"]
[WhiteElo "2368"]
[BlackElo "2130"]
[Annotator "TA"]
[PlyCount "76"]
[EventDate "2022.07.02"]
[EventType "swiss"]
[EventCountry "TUR"]
[SourceTitle "playchess.com"]
[Source "ChessBase"]
[SourceQuality "1"]
[TimeControl "5400+30"]

{[%evp 10,76,20,0,0,0,0,0,25,26,37,28,38,27,60,-42,0,-41,0,0,36,0,0,-26,-13,-67,-64,-63,-64,-61,-43,-88,-63,-104,0,0,0,-80,-103,-93,-89,-137,-70,-151,0,-276,-194,-372,-387,-339,-193,-416,-404,-885,-891,-919,-910,-883,-671,-925,-890,-1608,-1506,-2612,-2540,-29990,-29991,-29992,-29989]} 1. e4 {[%emt 0:04:00]} c5 {[%emt 0:01:00]} 2. Nf3 {[%emt 0:00:30]} Nc6 {[%emt 0:00:00]} 3. d4 {[%emt 0:01:30]} cxd4 {[%emt 0:00:00]} 4. Nxd4 {[%emt 0:00:30]} g6 {[%emt 0:00:30]} 5. Nb3 {[%emt 0:04:30]} Bg7 {[%emt 0:02:30]} 6. c4 {[%emt 0:00:30]} d6 {[%emt 0:02:30] B37: Sicilian: Maroczy Bind with 5...Bg7, sidelines.} 7. Be2 {[%emt 0:01:30]} b6 {[%emt 0:01:30]} 8. O-O {[%emt 0:00:30]} Nf6 {[%emt 0:01:30] The position is equal.} 9. Nc3 {[%emt 0:00:30]} O-O {[%emt 0:00:30]} 10. Be3 {[%emt 0:06:30]} Bb7 {[%emt 0:04:30]} 11. f3 {[%emt 0:09:30]} Rc8 {[%emt 0:01:30] [#]} 12. a4 $146 {[%emt 0:01:30]} (12. Nd4 $14) ({Predecessor:} 12. Rc1 Nd7 13. Nd4 Nxd4 14. Bxd4 Bh6 15. Rc2 Nc5 16. Re1 Qd7 17. b4 Ne6 18. Bf2 {1-0 (48) Cmilyte,V (2464)-Foisor,C (2388) Germany 2007}) 12... Nd7 {[%emt 0:02:30]} 13. a5 {[%emt 0:09:30]} Bxc3 {[%emt 0:03:30]} 14. bxc3 {[%emt 0:00:30]} bxa5 {[%emt 0:00:30]} 15. f4 {[%emt 0:06:30]} Ba6 {[%emt 0:01:30]} 16. Rf3 {[%emt 0:05:30]} Nf6 {[%emt 0:00:30][%cal Bd7f6,Bf6g4,Bg4e3][%mdl 32]} 17. Nd2 {[%emt 0:10:30]} (17. Qd3 $11) 17... Ng4 $1 $15 {[%emt 0:02:30]} 18. Kh1 {[%emt 0:00:30]} Nxe3 {[%emt 0:00:30]} 19. Rxe3 {[%emt 0:00:30]} Rb8 {[%emt 0:05:30]} 20. Rh3 {[%emt 0:02:30]} Bc8 {[%emt 0:00:30]} 21. g4 {[%emt 0:00:30][%cal Oc4c5]} e5 {[%emt 0:11:30]} (21... Qb6 $17 22. Qe1 f6) 22. f5 $1 $11 {[%emt 0:02:30]} Qg5 $36 {[%emt 0:00:30][%mdl 2048] Black has some pressure.} 23. Qe1 {[%emt 0:13:14]} (23. Nf3 $11 {keeps the balance.} Qf4 24. Qxd6) 23... Rb2 $17 {[%emt 0:04:30]} 24. Nf3 {[%emt 0:03:20] [#]} Qf4 {[%emt 0:01:30]} (24... Qxg4 $2 25. Rh4 Bxf5 26. Rxg4 Bxg4 27. Bd1 $18) 25. Bf1 {[%emt 0:02:12]} (25. Qh4 $142 h6 26. Ng1) 25... g5 {[%emt 0:09:30] 0x0.001b6a32e570dp-1022s more active pieces.} ({Don't take} 25... gxf5 26. gxf5 Ne7 27. Bg2 Nxf5 28. exf5 $16) ({Don't do} 25... Qxg4 26. Qc1 Rb7 27. Qh6 $14) (25... h5 $17 26. gxh5 gxf5 27. exf5 Kh7) 26. Rd1 {[%emt 0:01:16]} ({White should play} 26. c5 $15) 26... Rd8 $2 {[%emt 0:01:30]} (26... Qxg4 {[#]} 27. Nxg5 $1 {[%mdl 512]} Qxg5 28. Rg3 $18) (26... Bb7 $17 {aiming for ...a4.} 27. Rd2 Rxd2 28. Nxd2 a4) 27. c5 $2 {[%emt 0:03:22][%mdl 8192]} (27. Rd2 $11 {and White has nothing to worry.} Rxd2 28. Nxd2) 27... Nb8 {[%emt 0:05:30]} (27... Qxg4 $2 28. Rg3 Qf4 29. Nxg5 $18) 28. Rb1 $2 {[%emt 0:04:11]} ({Avoid the trap} 28. Rxd6 $2 Rxd6 29. cxd6 Bb7 $19) (28. cxd6 Bb7 29. Qg3 Qxe4 30. Re1 Qxf3+ 31. Qxf3 Bxf3+ 32. Rxf3) 28... Rxb1 $19 {[%emt 0:03:30]} 29. Qxb1 {[%emt 0:00:30]} Bd7 {[%emt 0:03:30]} (29... Nd7 $142 30. c6 Nf6) 30. Bd3 $2 {[%emt 0:04:02]} (30. Qd3 Bc6 31. Nd2) 30... Bc6 {[%emt 0:03:30]} 31. Kg2 {[%emt 0:01:52]} (31. cxd6 $142 Nd7 32. Ne1) 31... d5 {[%emt 0:00:30][%cal Rd5e4]} 32. exd5 {[%emt 0:01:19]} Bxd5 {[%emt 0:00:30] Strongly threatening ...h5.} 33. Be2 {[%emt 0:00:12]} Nc6 {[%emt 0:01:30] Threatens to win with ...a4.} 34. f6 {[%emt 0:00:36]} e4 {[%emt 0:00:30][%cal Be5e4,Be4e3][%mdl 32]} 35. Ng1 {[%emt 0:00:51]} Ne5 {[%emt 0:00:30]} 36. c4 {[%emt 0:00:43]} Bc6 {[%emt 0:00:30] And now ...e3+ would win.} 37. Rg3 {[%emt 0:00:14]} e3+ {[%emt 0:01:30]} 38. Kh3 {[%emt 0:00:04]} Qxf6 {[%emt 0:00:30] Weighted Error Value: White=0.98/Black=0.27 (precise)} 0-1

[Event "5th Baskent University Open 2022"]
[Site "Ankara"]
[Date "2022.07.03"]
[Round "3.9"]
[White "Huseyinoglu, Alihan"]
[Black "Ozkan, Taha"]
[Result "1-0"]
[ECO "A11"]
[WhiteElo "2213"]
[BlackElo "2357"]
[Annotator "TA"]
[PlyCount "63"]
[EventDate "2022.07.02"]
[EventType "swiss"]
[EventCountry "TUR"]
[SourceTitle "playchess.com"]
[Source "ChessBase"]
[SourceQuality "1"]
[TimeControl "5400+30"]

{[%evp 9,63,0,28,26,28,8,10,6,16,13,6,12,7,9,26,0,0,0,19,22,27,-38,201,194,29997,110,102,96,104,102,98,113,161,189,258,184,231,239,351,264,297,242,226,231,385,403,383,345,809,802,788,787,1024,1000,3326,2502]} 1. c4 {[%emt 0:01:00]} c6 {[%emt 0:01:00]} 2. Nf3 {[%emt 0:00:30]} d5 {[%emt 0:00:30]} 3. e3 {[%emt 0:00:00]} e6 {[%emt 0:00:00]} 4. Nc3 {[%emt 0:01:00]} Bd6 {[%emt 0:00:00]} 5. Qc2 {[%emt 0:03:30]} f5 {[%emt 0:01:30] [#]} 6. cxd5 $146 {[%emt 0:07:30] A11: English Opening: 1...c6.} ({Predecessor:} 6. h3 Nf6 7. g4 O-O 8. gxf5 exf5 9. b3 Qe7 10. Bb2 Na6 11. Rg1 Bd7 12. cxd5 {0-1 (48) Nakamura,H (2644)-Friedel,J (2455) San Diego 2006}) 6... exd5 {[%emt 0:00:30]} 7. Bd3 {[%emt 0:04:30]} Nh6 {[%emt 0:03:30]} 8. b3 {[%emt 0:03:30] The position is equal.} O-O {[%emt 0:00:30]} 9. Bb2 {[%emt 0:00:30]} Nd7 {[%emt 0:00:30]} 10. Ne2 {[%emt 0:08:30]} Qe7 {[%emt 0:11:30]} 11. O-O {[%emt 0:06:30]} Nf6 {[%emt 0:06:30]} 12. Nfd4 {[%emt 0:06:30]} c5 {[%emt 0:14:30]} 13. Nf3 {[%emt 0:05:30]} Bd7 {[%emt 0:05:30]} 14. Nf4 {[%emt 0:02:30]} Bc6 {[%emt 0:08:30]} 15. Bxf5 {[%emt 0:03:30]} (15. Ng5 $11) 15... d4 $2 {[%emt 0:04:30]} (15... Nxf5 $15 {stays ahead.} 16. Qxf5 Rae8) 16. Be6+ $18 {[%emt 0:07:30]} Kh8 $2 {[%emt 0:00:30] [#]} (16... Nf7 $18) 17. Ng5 $2 {[%emt 0:00:30]} (17. Qxh7+ $1 {[%mdl 512] mates} Kxh7 18. Ng5+ Kh8 19. Ng6#) 17... Bxf4 {[%emt 0:05:30]} 18. exf4 {[%emt 0:00:30] Black must now prevent Rfe1.} Ne4 {[%emt 0:00:30]} 19. Nxe4 $40 {[%emt 0:03:30][%mdl 128] Threatens to win with Ng5. Black is in trouble.} Qxe6 {[%emt 0:00:30]} 20. Nxc5 {[%emt 0:01:30]} Qd5 {[%emt 0:01:30]} (20... Qd6 $16) 21. f3 {[%emt 0:02:30]} Bb5 {[%emt 0:04:30]} (21... Rac8 $142) 22. Rfc1 {[%emt 0:04:30]} Rac8 {[%emt 0:00:30]} (22... Rxf4 {is a better defense.} 23. a4 Be8) 23. a4 {[%emt 0:00:30]} Ba6 {[%emt 0:14:43]} (23... Bc6 $142 24. Qc4 Rfe8 25. Qxd4 Qxd4+ 26. Bxd4 Rcd8) 24. b4 {[%emt 0:10:47][%cal Bb3b4,Bb4b5,Bb5a6][%mdl 32] Hoping for Qe4.} Rxf4 {[%emt 0:07:53]} 25. b5 {[%emt 0:01:03]} b6 {[%emt 0:03:52][%cal Rc8c5]} 26. Qb3 {[%emt 0:01:50]} ({But not} 26. bxa6 $6 bxc5 27. Re1 Nf5 $16) 26... Rxc5 {[%emt 0:03:36]} (26... Bb7) 27. Qxd5 {[%emt 0:00:30]} Rxd5 {[%emt 0:00:30]} 28. bxa6 {[%emt 0:00:00]} Rf7 $2 {[%emt 0:00:00]} (28... g6 29. Rc8+ Kg7) 29. Rc8+ {[%emt 0:00:55] White is clearly winning.} Ng8 {[%emt 0:00:00]} 30. Re1 {[%emt 0:00:30]} g5 {[%emt 0:00:02]} 31. Ree8 {[%emt 0:00:17][%csl Gc8][%cal Re8g8]} Rg7 {[%emt 0:00:02]} 32. Rcd8 {[%emt 0:00:24] Weighted Error Value: White=0.40/Black=0.83} 1-0

[Event "5th Baskent University Open 2022"]
[Site "Ankara"]
[Date "2022.07.03"]
[Round "3.11"]
[White "Sevgi, Volkan"]
[Black "Bekiragaoglu, Umut"]
[Result "0-1"]
[ECO "D36"]
[WhiteElo "2305"]
[BlackElo "2067"]
[Annotator "TA"]
[PlyCount "180"]
[EventDate "2022.07.02"]
[EventType "swiss"]
[EventCountry "TUR"]
[SourceTitle "playchess.com"]
[Source "ChessBase"]
[SourceQuality "1"]
[TimeControl "5400+30"]

{[%evp 27,180,14,6,0,29,18,29,25,53,52,58,51,49,56,63,53,61,60,60,60,60,60,60,60,60,60,60,43,60,60,60,60,60,60,60,47,60,53,85,60,95,91,141,99,321,225,378,412,412,365,362,280,202,220,292,283,285,264,204,98,597,604,899,887,1314,1271,6079,0,0,-71,-71,-70,-78,-370,-374,-357,-358,-1690,-1701,-1586,-1545,-1083,-747,-29965,-29966,-29966,-29967,-29965,-29962,-29966,-29966,-29966,-29967,-29974,-29975,-29975,-29976,-29976,-29976,-29976,-29977,-29977,-29978,-29978,-29979,-29979,-29980,-29981,-29982,-29982,-29983,-29983,-29984,-29984,-29981,-29981,-29981,-29979,-29979,-29979,-29980,-29980,-29981,-29981,-29982,-29985,-29983,-29983,-29982,-29982,-29982,-29982,-29983,-29983,-29984,-29984,-29985,-29984,-29985,-29986,-29987,-29987,-29984,-29984,-29985,-29985,-29986,-29988,-29989,-29989,-29990,-29993,-29994,-29995,-29996]} 1. d4 {[%emt 0:03:00]} d5 {[%emt 0:01:00]} 2. Nf3 {[%emt 0:02:30]} e6 {[%emt 0:00:30]} 3. c4 {[%emt 0:00:30]} Nf6 {[%emt 0:00:00]} 4. cxd5 {[%emt 0:01:30]} exd5 {[%emt 0:00:00]} 5. Nc3 {[%emt 0:00:30]} c6 {[%emt 0:05:30]} 6. Bg5 {[%emt 0:00:30]} Be7 {[%emt 0:00:00]} 7. Qc2 {[%emt 0:00:30]} O-O {[%emt 0:00:00]} 8. e3 {[%emt 0:00:30]} Nbd7 {[%emt 0:01:30]} 9. Bd3 {[%emt 0:00:00]} Re8 {[%emt 0:01:30]} 10. O-O {[%emt 0:01:00]} Nf8 {[%emt 0:00:30]} 11. Bxf6 {[%emt 0:00:30]} Bxf6 {[%emt 0:00:30]} 12. b4 {[%emt 0:00:30]} Bg4 {[%emt 0:00:30]} 13. Nd2 {[%emt 0:00:30]} Qd6 {[%emt 0:02:30]} 14. Rab1 {[%emt 0:03:30]} a6 {[%emt 0:07:30]} 15. a4 {[%emt 0:04:30] D36: Queen's Gambit Declined: Exchange Variation: Main line (5 Bg5 c6 6 Qc2).} b5 {[%emt 0:00:30]} 16. Rfc1 {[%emt 0:06:30] [#]} Be7 $146 {[%emt 0:04:30]} ({Predecessor:} 16... Bd7 17. Bf5 Bxf5 18. Qxf5 Ne6 19. Nf3 Nd8 20. Qc2 h6 21. g3 g5 22. Kg2 g4 {1-0 (53) Polyakevich,S (2314)-Merkuriev,V (2055) Novosibirsk 2008}) 17. Ne2 {[%emt 0:09:30] White has an edge.} Bxe2 {[%emt 0:02:30]} 18. Bxe2 {[%emt 0:00:30]} Rec8 {[%emt 0:00:30]} 19. Bg4 {[%emt 0:06:30]} Rc7 {[%emt 0:02:30]} 20. Nf3 {[%emt 0:01:30][%cal Bd2f3,Bf3e1,Be1d3][%mdl 32]} f6 {[%emt 0:07:30]} 21. g3 {[%emt 0:07:30]} Rb8 {[%emt 0:16:30]} 22. Ne1 {[%emt 0:05:30]} g6 {[%emt 0:01:30]} 23. Nd3 {[%emt 0:01:30]} f5 {[%emt 0:00:00]} 24. Bf3 {[%emt 0:00:00]} Nd7 {[%emt 0:01:00]} 25. a5 {[%emt 0:00:00]} Rbc8 {[%emt 0:04:30]} 26. Qa2 {[%emt 0:03:30]} Kg7 {[%emt 0:04:30]} 27. Rc2 {[%emt 0:02:30]} Qf6 {[%emt 0:03:30]} 28. Bg2 {[%emt 0:05:30]} Bd6 {[%emt 0:00:30]} 29. Qb2 {[%emt 0:00:30]} Qe7 {[%emt 0:04:30]} 30. Qc1 {[%emt 0:05:30]} Nf6 {[%emt 0:02:30]} 31. Rb3 {[%emt 0:03:30]} h6 {[%emt 0:02:30]} 32. Rbc3 {[%emt 0:05:30][%cal Rc3c6]} Qd7 {[%emt 0:09:01]} 33. f4 {[%emt 0:08:12]} Nh7 {[%emt 0:05:22]} 34. Bf3 {[%emt 0:02:47]} g5 {[%emt 0:01:53]} (34... Kh8 $142) 35. h3 {[%emt 0:00:47]} Kg6 $2 {[%emt 0:00:44] [#]} (35... Qe6 $16 {keeps fighting.}) 36. g4 {[%emt 0:00:16]} Nf6 $2 {[%emt 0:01:04]} (36... Kg7 37. Ne5 Qe7 38. gxf5 Nf6) 37. Ne5+ $18 {[%emt 0:02:19]} Bxe5 {[%emt 0:00:52]} 38. dxe5 {[%emt 0:00:07]} ({Not} 38. fxe5 fxg4 39. Be2 gxh3 $18) 38... fxg4 {[%emt 0:00:36]} 39. hxg4 {[%emt 0:01:12]} Nxg4 {[%emt 0:01:14]} 40. Rg2 {[%emt 0:00:26]} h5 {[%emt 0:00:33]} 41. e4 {[%emt 0:00:31] Against Qf5} dxe4 {[%emt 0:01:04]} 42. Bxe4+ {[%emt 0:00:51]} Kg7 {[%emt 0:00:15] [#] aiming for ...Qd4+.} 43. Rd3 {[%emt 0:00:14] Against Qd4+} (43. Rd2 $18 {has better winning chances.} Qe7 44. Rd6) 43... Qe7 {[%emt 0:01:54][%mdl 8192]} (43... Qe6 $16 {is a better chance.}) 44. Rd6 {[%emt 0:01:20] Black must now prevent Rg6+.} Rg8 {[%emt 0:02:17]} 45. Bf5 {[%emt 0:02:42] Against Rd7} Kf8 {[%emt 0:02:43]} 46. Qd2 {[%emt 0:02:31]} gxf4 {[%emt 0:01:14]} 47. Qxf4 $2 {[%emt 0:00:54]} (47. Rd8+ $18 Kg7 48. Rxg8+ Kxg8 49. Bxg4 hxg4 50. Rxg4+ Kf7 51. Qxf4+ Ke6 52. Rg6+ Kd5 53. Rd6+ Qxd6 54. exd6 Rg7+ 55. Kf2) 47... Qg5 $11 {[%emt 0:00:24]} 48. Rf6+ {[%emt 0:02:39]} (48. Qxg5 $11 Rxg5 49. Bxg4 hxg4 50. Rh6) 48... Rf7 $17 {[%emt 0:00:43] Black continues to play with concentration.} 49. Rxf7+ {[%emt 0:01:06]} Kxf7 {[%emt 0:00:34][%cal Bf8f7,Bf7f6,Bf6e6][%mdl 32]} 50. e6+ $2 {[%emt 0:00:27][%mdl 8192]} (50. Qxg5 $17 Rxg5 51. Bc8) 50... Kf6 $19 {[%emt 0:00:00] Really sharp!} 51. Qxg5+ {[%emt 0:00:48]} Rxg5 {[%emt 0:00:00][%mdl 4096] Endgame KRB-KRN} 52. Be4 {[%emt 0:00:00]} (52. e7 Kxe7 53. Bc8) 52... Re5 {[%emt 0:00:30]} 53. Re2 {[%emt 0:00:45]} Kxe6 {[%emt 0:01:20]} 54. Kf1 {[%emt 0:00:07]} Nf6 {[%emt 0:00:58]} 55. Bxc6 {[%emt 0:00:30]} Rxe2 {[%emt 0:00:30] Black mates.} 56. Kxe2 {[%emt 0:00:00] KB-KN} Nd5 {[%emt 0:00:00]} 57. Be8 {[%emt 0:01:08]} h4 {[%emt 0:00:00]} 58. Kf3 {[%emt 0:00:39]} Nxb4 {[%emt 0:00:11]} 59. Kg4 {[%emt 0:00:00]} Kd6 {[%emt 0:01:06]} 60. Kxh4 {[%emt 0:00:18]} Nc6 {[%emt 0:00:30]} 61. Kg4 {[%emt 0:00:00]} Nxa5 {[%emt 0:00:00]} 62. Kf4 {[%emt 0:00:00]} Nc4 {[%emt 0:00:46]} 63. Ke4 {[%emt 0:00:19]} Kc5 {[%emt 0:00:30]} 64. Kd3 {[%emt 0:00:30]} a5 {[%emt 0:00:30][%cal Ba6a5,Ba5a4][%mdl 32]} 65. Kc3 {[%emt 0:00:00]} a4 {[%emt 0:00:00]} 66. Kc2 {[%emt 0:00:00]} Nb6 {[%emt 0:00:00]} 67. Bf7 {[%emt 0:00:00]} Kd4 {[%emt 0:00:24]} 68. Kb2 {[%emt 0:00:16]} Nc4+ {[%emt 0:00:37]} 69. Kb1 {[%emt 0:00:11]} b4 {[%emt 0:00:21]} 70. Be8 {[%emt 0:00:02]} Nb6 {[%emt 0:00:32]} 71. Kb2 {[%emt 0:00:01]} Kc4 {[%emt 0:01:22]} 72. Bf7+ {[%emt 0:00:47]} Nd5 {[%emt 0:00:21]} 73. Be6 {[%emt 0:00:13]} Kc5 {[%emt 0:01:37]} 74. Bd7 {[%emt 0:00:01]} Nc3 {[%emt 0:00:01]} 75. Be6 {[%emt 0:01:29]} Nb5 {[%emt 0:01:14]} 76. Bf7 {[%emt 0:00:10]} Nd4 {[%emt 0:00:18]} 77. Ka2 {[%emt 0:00:35]} a3 {[%emt 0:01:08]} 78. Bg8 {[%emt 0:00:30]} Kd6 {[%emt 0:00:30]} 79. Bf7 {[%emt 0:00:30]} Ke5 {[%emt 0:00:30]} 80. Bg8 {[%emt 0:00:30]} Ke4 {[%emt 0:00:00]} 81. Bc4 {[%emt 0:00:00]} Ke3 {[%emt 0:00:00]} 82. Bg8 {[%emt 0:00:00]} Kd2 {[%emt 0:00:00]} 83. Bc4 {[%emt 0:00:00]} Kc3 {[%emt 0:00:00]} 84. Bf7 {[%emt 0:00:00]} Nb5 {[%emt 0:00:56]} 85. Bb3 {[%emt 0:00:23]} Nd6 {[%emt 0:00:30]} 86. Bd1 {[%emt 0:00:00]} Nc4 {[%emt 0:00:01]} 87. Bb3 {[%emt 0:00:03]} Nb2 {[%emt 0:00:05]} 88. Be6 {[%emt 0:01:33]} Nc4 {[%emt 0:00:03]} 89. Bf5 {[%emt 0:00:28]} b3+ {[%emt 0:00:04]} 90. Ka1 {[%emt 0:00:28]} Ne3 {[%emt 0:00:06] Weighted Error Value: White=0.54/Black=0.34} 0-1